bitfinex/quotes_SOLUSD_20240906
["timestamp","ask_amount","ask_price","bid_price","bid_amount"]
[1725585688073,22.17075488,129.97,129.91,19.2436]
[1725585688284,9.86485488,129.97,129.92,7.6969]
[1725585688481,20.0,129.96,129.93,7.6962]
[1725585688681,2.17075488,129.97,129.94,7.6957]
[1725585689386,2.17075488,129.97,129.95,7.6952]
[1725585690056,2.17075488,129.97,129.93,19.2402]
[1725585690254,2.17075488,129.97,129.94,45.0]
[1725585691181,2.17075488,129.97,129.93,19.2402]
[1725585691378,2.17075488,129.97,129.95,7.6951]
[1725585691552,2.17075488,129.97,129.93,19.2402]
[1725585691753,2.17075488,129.97,129.94,7.6958]
[1725585694366,2.17075488,129.97,129.93,26.9365]
[1725585694596,9.86525488,129.97,129.93,19.2402]
[1725585694885,20.0,129.96,129.93,19.2402]
[1725585695466,9.86525488,129.97,129.93,19.2402]
[1725585697385,7.6963,129.94,129.9,19.245]
[1725585697764,6.5374,129.96,129.91,7.6971]
[1725585697979,20.0,129.95,129.91,7.6971]
[1725585698390,27.6954,129.95,129.9,19.245]
[1725585698569,27.6954,129.95,129.9,26.943]
[1725585701286,7.696,129.94,129.9,26.943]
[1725585701593,7.6971,129.92,129.87,26.9492]
[1725585701888,7.6971,129.92,129.87,19.2493]
[1725585702287,16.0708,129.94,129.85,7.701]
[1725585702288,7.6983,129.9,129.85,7.701]
[1725585702473,7.6983,129.9,129.84,25.5542]
[1725585702980,1.34118781,129.89,129.84,25.5542]
[1725585703363,1.34118781,129.89,129.86,7.7004]
[1725585703591,1.34118781,129.89,129.87,7.7]
[1725585703894,1.34118781,129.89,129.88,7.6994]
[1725585704279,1.34118781,129.89,129.88,52.6994]
[1725585710206,0.8308386,129.97,129.94,19.2385]
[1725585710390,0.8308386,129.97,129.94,26.9342]
[1725585710593,1.34007536,129.96,129.94,26.9342]
[1725585710792,1.34007536,129.96,129.95,7.6952]
[1725585712881,1.34007536,129.96,129.94,26.9343]
[1725585715802,1.34007536,129.96,129.95,7.6952]
[1725585718416,1.34007536,129.96,129.95,52.6952]
[1725585720817,1.34007536,129.96,129.89,7.6984]
[1725585721018,7.6958,129.95,129.9,7.6981]
[1725585721314,1.34007536,129.96,129.88,19.2477]
[1725585721315,7.6959,129.94,129.89,7.6986]
[1725585721518,7.6966,129.93,129.88,26.947]
[1725585721817,7.6964,129.93,129.89,7.6987]
[1725585722513,7.6964,129.93,129.88,19.2477]
[1725585722514,7.6964,129.93,129.88,26.9471]
[1725585722820,10.0,129.95,129.85,19.2524]
[1725585723011,7.6993,129.89,129.85,19.2524]
[1725585723211,7.6993,129.89,129.83,7.7022]
[1725585724103,7.6996,129.88,129.83,7.7022]
[1725585724697,19.2419,129.93,129.82,19.2568]
[1725585724698,7.7,129.87,129.82,26.9597]
[1725585724918,7.6993,129.89,129.83,7.7022]
[1725585725923,7.6999,129.88,129.83,7.7022]
[1725585726408,7.7018,129.84,129.79,7.7046]
[1725585726611,20.0,129.87,129.78,26.9672]
[1725585726612,7.7026,129.83,129.78,26.9672]
[1725585727627,7.7018,129.84,129.79,7.7047]
[1725585728217,20.0,129.83,129.79,7.7047]
[1725585728913,20.0,129.83,129.8,7.704]
[1725585729120,20.0,129.84,129.8,7.704]
[1725585729632,27.7018,129.84,129.8,7.704]
[1725585730135,7.7024,129.83,129.78,19.262]
[1725585730429,27.7019,129.84,129.79,7.7047]
[1725585730812,1.34173489,129.83,129.8,7.704]
[1725585731129,1.34173489,129.83,129.8,19.2592]
[1725585731433,1.34173489,129.83,129.81,7.7034]
[1725585732739,9.04413489,129.83,129.78,7.7052]
[1725585734111,7.7029,129.82,129.77,19.2645]
[1725585734316,9.04413489,129.83,129.77,19.2645]
[1725585735338,9.04413489,129.83,129.78,7.7051]
[1725585737637,1.34173489,129.83,129.81,7.7033]
[1725585740241,1.34173489,129.83,129.8,7.704]
[1725585741651,21.34173489,129.83,129.8,7.704]
[1725585742943,7.703,129.82,129.75,54.0517]
[1725585743242,7.7035,129.81,129.76,26.9722]
[1725585743618,21.34173489,129.83,129.76,26.9722]
[1725585743619,21.34173489,129.83,129.76,19.2658]
[1725585743817,7.7038,129.81,129.76,19.2658]
[1725585744917,7.703,129.82,129.77,7.7055]
[1725585745141,7.703,129.82,129.76,19.2658]
[1725585745142,20.0,129.81,129.78,7.7053]
[1725585745935,20.0,129.81,129.79,7.7047]
[1725585746143,9.04453489,129.83,129.78,7.7052]
[1725585746316,27.7032,129.82,129.77,7.7057]
[1725585746520,7.7032,129.82,129.77,7.7057]
[1725585746721,20.0,129.81,129.77,7.7057]
[1725585747220,7.7043,129.8,129.76,26.9721]
[1725585748828,7.7049,129.79,129.73,19.2697]
[1725585749021,7.7049,129.79,129.74,45.0]
[1725585749222,7.7043,129.8,129.75,7.7066]
[1725585749422,7.7043,129.8,129.76,7.7065]
[1725585749619,36.5414,129.81,129.77,7.7058]
[1725585751133,1.34203963,129.8,129.77,7.7058]
[1725585753246,1.34203963,129.8,129.78,7.7053]
[1725585756140,1.34203963,129.8,129.77,7.7058]
[1725585758963,1.34203963,129.8,129.76,7.7064]
[1725585759133,9.04653963,129.8,129.75,26.9737]
[1725585759328,20.0,129.79,129.74,7.7075]
[1725585759529,36.5414,129.81,129.74,7.7075]
[1725585760232,7.7054,129.78,129.74,7.7075]
[1725585760857,7.7049,129.79,129.74,7.7075]
[1725585761059,20.0,129.78,129.74,7.7075]
[1725585762358,20.0,129.78,129.73,7.7081]
[1725585762652,22.4508,129.76,129.69,26.9864]
[1725585762855,7.7095,129.71,129.66,26.9925]
[1725585763057,22.4508,129.76,129.66,26.9925]
[1725585763058,27.7101,129.7,129.66,17.93737885]
[1725585763246,27.7101,129.7,129.63,6.0647]
[1725585763247,7.7108,129.69,129.63,26.9989]
[1725585763445,20.0,129.68,129.63,19.2853]
[1725585763962,20.0,129.68,129.64,7.7136]
[1725585764258,20.0,129.73,129.64,7.7136]
[1725585764464,7.7113,129.68,129.63,26.9995]
[1725585764666,20.0,129.67,129.63,26.9995]
[1725585764834,20.0,129.67,129.63,19.2853]
[1725585765039,27.7118,129.67,129.63,19.2853]
[1725585765339,20.0,129.67,129.63,19.2853]
[1725585766457,20.0,129.67,129.63,26.9992]
[1725585770338,20.0,129.67,129.66,7.7124]
[1725585770540,20.0,129.67,129.64,7.7131]
[1725585770758,20.0,129.68,129.64,7.7131]
[1725585772257,20.0,129.68,129.65,7.7129]
[1725585774852,20.0,129.68,129.64,7.7136]
[1725585776361,20.0,129.68,129.63,26.9994]
[1725585778751,20.0,129.68,129.63,19.2853]
[1725585778952,20.0,129.68,129.65,26.995]
[1725585779151,20.0,129.71,129.65,26.995]
[1725585780151,1.34265437,129.65,129.62,42.1955]
[1725585780360,1.34265437,129.65,129.62,27.0011]
[1725585780956,1.34265437,129.65,129.63,7.7141]
[1725585782055,1.34265437,129.65,129.64,7.7136]
[1725585782272,1.34265437,129.65,129.63,7.7141]
[1725585782866,1.34265437,129.65,129.62,19.2864]
[1725585783186,1.34265437,129.65,129.61,7.7149]
[1725585783488,1.34265437,129.65,129.59,41.0183]
[1725585783861,1.34265437,129.65,129.59,34.4853]
[1725585784059,1.34265437,129.65,129.56,6.533]
[1725585784060,7.7137,129.64,129.57,7.7173]
[1725585784269,27.7143,129.63,129.56,48.7411]
[1725585784557,27.7143,129.63,129.56,42.2081]
[1725585784558,20.0,129.62,129.56,42.2081]
[1725585784964,27.7152,129.62,129.56,34.4899]
[1725585785586,20.0,129.62,129.56,42.2083]
[1725585787687,20.0,129.62,129.56,27.0139]
[1725585788360,20.0,129.62,129.53,45.1331]
[1725585788557,7.7136,129.64,129.58,27.0091]
[1725585788758,20.0,129.63,129.58,27.0091]
[1725585789059,20.0,129.63,129.58,19.2919]
[1725585790396,27.7143,129.63,129.58,19.2919]
[1725585791400,27.7143,129.63,129.57,7.7178]
[1725585791574,20.0,129.63,129.57,7.7178]
[1725585792181,20.0,129.63,129.58,7.717]
[1725585792575,7.7132,129.65,129.58,7.717]
[1725585792576,20.0,129.64,129.58,7.717]
[1725585793206,27.7138,129.64,129.58,7.717]
[1725585793772,27.7138,129.64,129.57,19.2938]
[1725585793986,27.7138,129.64,129.58,45.0]
[1725585794189,27.7138,129.64,129.58,43.88902908]
[1725585794591,1.34325081,129.63,129.58,43.88902908]
[1725585795764,1.34325081,129.63,129.58,43.65703822]
[1725585796378,1.34325081,129.63,129.59,7.7162]
[1725585797681,1.34325081,129.63,129.58,43.65703822]
[1725585797886,1.34325081,129.63,129.61,7.7153]
[1725585798082,1.34325081,129.63,129.61,6.7153]
[1725585798777,1.34325081,129.63,129.62,52.7148]
[1725585799278,1.34325081,129.63,129.62,53.50865899]
[1725585799705,1.34325081,129.63,129.62,52.7148]
[1725585800200,6.5905,129.72,129.63,19.2842]
[1725585800421,1.34237483,129.66,129.64,45.0]
[1725585800574,6.5905,129.72,129.65,7.7129]
[1725585800775,6.5905,129.72,129.66,45.0]
[1725585800997,6.5905,129.72,129.66,64.2811]
[1725585801206,1.34228016,129.71,129.66,71.9935]
[1725585801376,1.34228016,129.71,129.66,64.2811]
[1725585802202,1.34228016,129.71,129.67,7.7116]
[1725585802499,1.34228016,129.71,129.68,0.7941632]
[1725585802807,1.34228016,129.71,129.66,64.2811]
[1725585802978,1.34228016,129.71,129.67,1.12465377]
[1725585803505,1.34228016,129.71,129.66,64.2811]
[1725585805303,1.34228016,129.71,129.66,71.9931]
[1725585805879,1.34228016,129.71,129.66,64.04926881]
[1725585806596,1.34228016,129.71,129.68,7.7108]
[1725585807997,1.34228016,129.71,129.69,45.0]
[1725585810504,1.34228016,129.71,129.69,46.54073579]
[1725585810803,1.34228016,129.71,129.69,45.0]
[1725585811508,20.0,129.74,129.69,52.7106]
[1725585811810,20.0,129.76,129.69,51.83176769]
[1725585812411,27.7065,129.76,129.69,44.12116769]
[1725585813411,20.0,129.76,129.66,7.7119]
[1725585813597,7.7078,129.74,129.66,7.7119]
[1725585813797,20.0,129.73,129.66,7.7119]
[1725585814402,1.34149148,129.72,129.66,7.7119]
[1725585814799,1.34149148,129.72,129.67,45.0]
[1725585815497,1.34149148,129.72,129.67,52.7118]
[1725585820232,1.34149148,129.72,129.67,64.279]
[1725585820389,1.34149148,129.72,129.7,7.71]
[1725585820592,1.34149148,129.72,129.69,26.9864]
[1725585820814,1.34149148,129.72,129.7,45.0]
[1725585822404,1.34149148,129.72,129.7,52.71]
[1725585826229,1.34149148,129.72,129.71,1.54148116]
[1725585826719,1.34149148,129.72,129.71,9.25098116]
[1725585826926,1.34149148,129.72,129.71,54.25098116]
[1725585827830,1.34149148,129.72,129.71,52.7095]
[1725585829216,1.34149148,129.72,129.71,45.0]
[1725585829428,1.34149148,129.72,129.69,19.276]
[1725585830124,1.34149148,129.72,129.69,26.9866]
[1725585830830,1.34149148,129.72,129.7,45.0]
[1725585831039,1.34149148,129.72,129.71,7.7095]
[1725585831335,1.34149148,129.72,129.71,52.7095]
[1725585836139,1.34149148,129.72,129.71,54.25092251]
[1725585836434,1.34149148,129.72,129.71,52.7095]
[1725585838420,1.34149148,129.72,129.71,53.75714897]
[1725585838619,1.34149148,129.72,129.71,52.7095]
[1725585839634,23.9602,129.81,129.73,7.7078]
[1725585839948,23.9602,129.81,129.74,45.0]
[1725585839949,1.34092296,129.75,129.74,45.0]
[1725585840123,23.9602,129.81,129.74,45.0]
[1725585840327,1.34098394,129.75,129.73,45.0]
[1725585840638,23.9602,129.81,129.73,45.0]
[1725585840840,1.34097229,129.75,129.73,45.0]
[1725585841221,23.9602,129.81,129.73,45.0]
[1725585841421,1.34096517,129.75,129.74,7.7076]
[1725585841741,16.2563,129.81,129.74,52.7076]
[1725585841947,23.9601,129.81,129.75,45.0]
[1725585842136,1.340993,129.8,129.75,45.0]
[1725585842526,21.340993,129.8,129.75,45.0]
[1725585843043,29.045193,129.8,129.75,45.0]
[1725585843235,29.045193,129.8,129.72,19.2711]
[1725585843431,29.045193,129.8,129.73,45.0]
[1725585844245,21.340993,129.8,129.7,7.7099]
[1725585844548,21.340993,129.8,129.68,7.7111]
[1725585844549,1.3408,129.72,129.68,7.7111]
[1725585845951,1.3408,129.72,129.69,45.0]
[1725585846537,1.3408,129.72,129.68,7.7111]
[1725585847823,1.3408,129.72,129.69,45.0]
[1725585848926,1.3408,129.72,129.7,0.75939661]
[1725585849141,1.3408,129.72,129.71,7.7095]
[1725585849331,1.3408,129.72,129.71,52.7095]
[1725585850527,20.0,129.77,129.71,45.0]
[1725585850728,20.0,129.77,129.72,45.0]
[1725585851032,20.0,129.77,129.73,7.7082]
[1725585851340,20.0,129.77,129.74,45.0]
[1725585851530,6.2035,129.79,129.74,45.0]
[1725585851737,16.2563,129.81,129.75,7.7071]
[1725585851943,23.9599,129.81,129.76,45.0]
[1725585852254,23.9599,129.81,129.74,7.7076]
[1725585852255,23.9599,129.81,129.75,45.0]
[1725585852826,20.0,129.8,129.75,45.0]
[1725585855228,20.0,129.8,129.75,52.7069]
[1725585855928,0.16422317,129.76,129.75,52.7069]
[1725585858358,0.16422317,129.76,129.75,45.0]
[1725585862759,0.16422317,129.76,129.75,52.7071]
[1725585863884,0.16422317,129.76,129.75,54.24756656]
[1725585864082,0.16422317,129.76,129.75,45.0]
[1725585869099,0.16422317,129.76,129.72,7.7084]
[1725585870388,7.7072,129.75,129.68,45.83174208]
[1725585870572,22.90082317,129.76,129.69,7.7106]
[1725585870573,30.60732317,129.76,129.69,7.7106]
[1725585870896,20.0,129.75,129.69,7.7106]
[1725585871268,20.0,129.75,129.68,19.2776]
[1725585871472,20.0,129.75,129.69,7.7105]
[1725585872193,7.708,129.74,129.68,19.2776]
[1725585873392,7.7084,129.73,129.66,7.7124]
[1725585874072,20.0,129.72,129.66,7.7124]
[1725585874893,30.60732317,129.76,129.69,7.7105]
[1725585875095,20.0,129.75,129.7,0.45097355]
[1725585875285,20.0,129.75,129.7,45.45097355]
[1725585875480,20.0,129.75,129.71,0.45093878]
[1725585875683,20.0,129.75,129.7,45.0]
[1725585875983,0.16552395,129.71,129.7,45.0]
[1725585876489,0.16552395,129.71,129.68,7.7111]
[1725585876490,0.16552395,129.71,129.69,45.0]
[1725585878369,0.16552395,129.71,129.69,52.7105]
[1725585879777,0.16552395,129.71,129.69,45.0]
[1725585881006,0.16552395,129.71,129.69,44.76818941]
[1725585881576,1.50610475,129.71,129.7,7.7101]
[1725585883006,1.50610475,129.71,129.69,64.04408941]
[1725585883190,1.50610475,129.71,129.69,44.76818941]
[1725585883377,1.50610475,129.71,129.68,45.0]
[1725585883791,1.50610475,129.71,129.68,52.711]
[1725585884691,1.50610475,129.71,129.7,7.7101]
[1725585884895,1.50610475,129.71,129.7,52.7101]
[1725585885403,1.50610475,129.71,129.7,45.0]
[1725585886479,1.50610475,129.71,129.69,45.0]
[1725585887513,1.50610475,129.71,129.69,52.7103]
[1725585889009,1.50610475,129.71,129.69,52.06478967]
[1725585891713,1.50610475,129.71,129.7,7.7101]
[1725585891915,1.50610475,129.71,129.7,52.7101]
[1725585892113,1.50610475,129.71,129.7,53.50632068]
[1725585894387,1.50610475,129.71,129.7,52.7101]
[1725585895899,1.65406831,129.71,129.7,52.7101]
[1725585896220,1.48854436,129.71,129.7,52.7101]
[1725585896591,1.48854436,129.71,129.7,45.0]
[1725585896996,1.48854436,129.71,129.68,26.9882]
[1725585898323,1.48854436,129.71,129.69,45.0]
[1725585900493,1.48854436,129.71,129.69,46.51487163]
[1725585901129,1.48854436,129.71,129.69,45.0]
[1725585902895,1.48854436,129.71,129.65,19.2826]
[1725585903233,16.73554436,129.71,129.63,7.714]
[1725585903521,27.7105,129.7,129.63,7.714]
[1725585904220,1.34175395,129.69,129.65,7.7129]
[1725585904403,20.0,129.7,129.65,7.7129]
[1725585904603,20.0,129.7,129.66,52.7124]
[1725585904801,15.39496356,129.71,129.66,45.0]
[1725585905006,0.14796356,129.71,129.68,7.7111]
[1725585905202,0.14796356,129.71,129.69,45.0]
[1725585906019,1.48920748,129.71,129.7,1.0478966]
[1725585906327,1.48920748,129.71,129.69,52.7106]
[1725585907205,1.48920748,129.71,129.69,45.0]
[1725585914200,1.48920748,129.71,129.7,7.7101]
[1725585914497,1.48920748,129.71,129.7,75.4019]
[1725585914702,0.14796356,129.71,129.7,95.4019]
[1725585915035,0.14424994,129.72,129.71,76.9832]
[1725585915204,0.14424994,129.72,129.71,124.74476005]
[1725585915715,0.14424994,129.72,129.71,174.74476005]
[1725585915932,0.29243701,129.72,129.71,124.74476005]
[1725585916132,0.14818707,129.72,129.71,124.74476005]
[1725585916431,0.14818707,129.72,129.71,174.74476005]
[1725585917230,0.16454746,129.73,129.72,7.7089]
[1725585917430,0.15740537,129.75,129.74,19.2693]
[1725585917741,0.16193469,129.76,129.75,74.2937]
[1725585917919,0.16193469,129.76,129.75,94.2937]
[1725585918120,0.1581522,129.78,129.77,76.9707]
[1725585918433,0.1581522,129.78,129.77,46.9707]
[1725585918611,0.1581522,129.78,129.77,129.73226005]
[1725585919504,0.1581522,129.78,129.77,174.73226005]
[1725585920119,0.1581522,129.78,129.77,124.73226005]
[1725585921017,0.1581522,129.78,129.77,174.73226005]
[1725585921409,0.1581522,129.78,129.77,124.73226005]
[1725585922536,0.1581522,129.78,129.77,26.9707]
[1725585923625,0.1581522,129.78,129.77,60.57560674]
[1725585923827,0.1581522,129.78,129.77,105.57560674]
[1725585924832,0.1581522,129.78,129.77,71.9707]
[1725585925717,0.1581522,129.78,129.77,110.5004]
[1725585926031,0.1581522,129.78,129.77,71.9707]
[1725585931328,0.1581522,129.78,129.73,38.86676005]
[1725585931641,0.1581522,129.78,129.76,7.7064]
[1725585932011,0.1581522,129.78,129.77,7.7059]
[1725585932923,0.1581522,129.78,129.77,52.7059]
[1725585934170,0.1581522,129.78,129.75,19.267]
[1725585935054,0.1581522,129.78,129.75,26.9737]
[1725585935242,0.1581522,129.78,129.76,7.7064]
[1725585935442,0.1581522,129.78,129.77,1.54075838]
[1725585935753,0.1581522,129.78,129.77,54.24665838]
[1725585935951,0.14726723,129.78,129.77,54.24665838]
[1725585936125,0.14726723,129.78,129.77,52.7059]
[1725585936954,0.14726723,129.78,129.77,54.24653104]
[1725585938042,0.14726723,129.78,129.77,52.7059]
[1725585944954,0.14726723,129.78,129.77,54.24655567]
[1725585951357,0.14726723,129.78,129.77,52.7059]
[1725585951988,0.14726723,129.78,129.77,66.36775654]
[1725585952788,0.14726723,129.78,129.77,65.78972228]
[1725585953283,0.14726723,129.78,129.77,67.33013444]
[1725585955799,0.14726723,129.78,129.77,65.78972228]
[1725585956083,0.1475616,129.78,129.77,65.78972228]
[1725585956292,0.1475616,129.78,129.77,7.7059]
[1725585956479,0.1475616,129.78,129.76,7.706]
[1725585957994,0.1475616,129.78,129.75,26.9739]
[1725585958788,1.34011588,129.77,129.75,26.9739]
[1725585959171,0.1475616,129.78,129.76,45.0]
[1725585959365,1.34010424,129.77,129.76,52.7065]
[1725585961759,1.34010424,129.77,129.76,54.24722295]
[1725585961959,1.34010424,129.77,129.76,52.7065]
[1725585962180,1.34010424,129.77,129.76,62.36211694]
[1725585962575,1.34010424,129.77,129.76,52.7065]
[1725585962979,1.34010424,129.77,129.76,62.36211694]
[1725585963200,1.34010424,129.77,129.76,52.7065]
[1725585963374,1.34010424,129.77,129.76,65.02840706]
[1725585963572,1.34010424,129.77,129.76,66.56792534]
[1725585964306,1.34010424,129.77,129.76,176.64253484]
[1725585964597,1.34010424,129.77,129.76,203.63133363]
[1725585964774,1.34010424,129.77,129.76,206.29676908]
[1725585965704,1.34010424,129.77,129.76,156.29676908]
[1725585966379,1.34010424,129.77,129.76,153.63087665]
[1725585966579,1.34010424,129.77,129.76,156.29559814]
[1725585966995,1.34010424,129.77,129.76,206.29559814]
[1725585967190,1.34010424,129.77,129.76,206.29521704]
[1725585968106,1.34010424,129.77,129.76,156.29521704]
[1725585968485,0.1475616,129.78,129.77,7.7059]
[1725585968702,0.1475616,129.78,129.77,85.02477899]
[1725585969275,0.1475616,129.78,129.77,65.02477899]
[1725585969581,0.1475616,129.78,129.77,85.02477899]
[1725585970298,0.1475616,129.78,129.77,75.37024039]
[1725585970506,0.1475616,129.78,129.77,85.02269415]
[1725585973616,0.1475616,129.78,129.77,75.37024039]
[1725585973905,0.1475616,129.78,129.77,82.35825089]
[1725585974478,0.1475616,129.78,129.77,85.02112128]
[1725585975796,0.29826224,129.78,129.77,85.02112128]
[1725585976112,0.15070064,129.78,129.77,85.02112128]
[1725585976803,0.15404947,129.8,129.79,50.0]
[1725585977009,0.1635376,129.81,129.8,7.7041]
[1725585977209,0.1635376,129.81,129.8,29.24394802]
[1725585977412,0.1635376,129.81,129.8,82.3554163]
[1725585978128,0.1635376,129.81,129.8,17.3554163]
[1725585978280,0.1635376,129.81,129.8,7.7041]
[1725585978484,0.1635376,129.81,129.78,19.2633]
[1725585979285,0.1635376,129.81,129.79,7.7042]
[1725585979885,0.1635376,129.81,129.8,52.7041]
[1725585981317,0.1635376,129.81,129.8,45.0]
[1725585982898,0.1635376,129.81,129.8,52.7041]
[1725585983327,0.1635376,129.81,129.8,53.45715899]
[1725585983499,0.1635376,129.81,129.8,66.54134839]
[1725585983903,0.1635376,129.81,129.8,53.45715899]
[1725585986710,0.1635376,129.81,129.8,53.45779104]
[1725585987608,0.1635376,129.81,129.8,54.24414345]
[1725585987800,0.1635376,129.81,129.8,135.1124274]
[1725585988023,0.1635376,129.81,129.8,156.23516619]
[1725585990628,0.1635376,129.81,129.8,153.57238395]
[1725585990796,0.1635376,129.81,129.8,156.23306893]
[1725585993339,0.1635376,129.81,129.8,123.5372518]
[1725585993513,0.1635376,129.81,129.8,123.53628922]
[1725585993833,0.1635376,129.81,129.8,120.87560424]
[1725585994334,0.1635376,129.81,129.8,111.2249]
[1725585994831,0.1635376,129.81,129.8,120.87609447]
[1725585995020,0.1635376,129.81,129.8,121.62223024]
[1725585995327,0.1635376,129.81,129.8,111.97103577]
[1725585995528,0.1635376,129.81,129.8,123.53678046]
[1725585995831,0.30592277,129.81,129.8,123.53678046]
[1725585996135,0.14238517,129.81,129.8,120.87546467]
[1725585996835,0.14238517,129.81,129.8,120.87599162]
[1725585997530,0.14238517,129.81,129.8,111.2249]
[1725585997735,0.14238517,129.81,129.8,17.35502286]
[1725585997910,0.14238517,129.81,129.78,19.2633]
[1725585997911,0.14238517,129.81,129.79,7.7046]
[1725585998110,0.14238517,129.81,129.8,7.7041]
[1725585999437,0.14238517,129.81,129.8,52.7041]
[1725586000429,1.48284532,129.81,129.8,52.7041]
[1725586000809,1.48284532,129.81,129.8,53.18889314]
[1725586001009,1.48284532,129.81,129.8,52.7041]
[1725586001206,1.48284532,129.81,129.8,53.19024196]
[1725586001932,1.48284532,129.81,129.8,52.7041]
[1725586003912,1.48284532,129.81,129.8,65.78072686]
[1725586004530,1.48284532,129.81,129.79,5.32532981]
[1725586004841,1.3397,129.77,129.72,19.2717]
[1725586005022,6.1261,129.75,129.65,51.64132686]
[1725586005348,13.8338,129.75,129.69,26.9863]
[1725586005518,13.8338,129.75,129.69,19.2762]
[1725586005519,7.7079,129.74,129.69,19.2762]
[1725586005720,27.7079,129.74,129.69,19.2762]
[1725586006513,7.709,129.72,129.66,7.7121]
[1725586006716,7.7106,129.7,129.65,19.282]
[1725586010363,7.7106,129.7,129.65,26.9949]
[1725586010531,7.7106,129.7,129.66,45.0]
[1725586015747,15.9251,129.73,129.66,45.0]
[1725586015963,0.16525347,129.67,129.66,52.7124]
[1725586021068,0.16525347,129.67,129.66,52.48057698]
[1725586021872,1.50741729,129.67,129.66,52.48057698]
[1725586024577,1.50741729,129.67,129.65,26.9949]
[1725586024952,1.50741729,129.67,129.66,8.76986888]
[1725586025261,1.50741729,129.67,129.66,8.76794192]
[1725586025752,1.50741729,129.67,129.66,54.25427738]
[1725586026251,1.50741729,129.67,129.66,52.7124]
[1725586028455,0.16525347,129.67,129.66,52.7124]
[1725586028650,0.16525347,129.67,129.66,53.76035124]
[1725586028875,0.16525347,129.67,129.66,76.03045124]
[1725586029078,0.16525347,129.67,129.66,96.03045124]
[1725586031159,0.16525347,129.67,129.66,96.5239174]
[1725586032076,0.16525347,129.67,129.66,119.7339174]
[1725586032287,0.1615917,129.68,129.67,90.507035]
[1725586032484,0.1615917,129.68,129.67,110.507035]
[1725586033696,0.16597366,129.69,129.68,88.7558]
[1725586033871,0.16597366,129.69,129.68,108.7558]
[1725586034570,0.16597366,129.69,129.68,109.55669458]
[1725586034779,0.16597366,129.69,129.68,108.7558]
[1725586035776,0.16597366,129.69,129.68,153.7558]
[1725586035980,0.16082297,129.69,129.68,153.7558]
[1725586037576,0.16082297,129.69,129.68,130.5458]
[1725586037983,0.16082297,129.69,129.68,65.5458]
[1725586038288,0.16082297,129.69,129.68,26.9894]
[1725586038591,0.16082297,129.69,129.65,19.2819]
[1725586038592,7.87172297,129.69,129.65,19.2819]
[1725586038791,0.16082297,129.69,129.65,26.9948]
[1725586039095,0.16082297,129.69,129.65,19.2819]
[1725586039468,7.87172297,129.69,129.65,19.2819]
[1725586039670,0.16082297,129.69,129.65,26.9948]
[1725586040294,7.7113,129.68,129.63,7.7136]
[1725586040477,1.342,129.65,129.63,7.7136]
[1725586041100,1.342,129.65,129.62,27.0014]
[1725586041289,1.342,129.65,129.62,19.2866]
[1725586041290,23.6036,129.65,129.62,19.2866]
[1725586042784,23.6036,129.65,129.63,45.0]
[1725586043380,23.6036,129.65,129.62,19.2866]
[1725586043873,23.6036,129.65,129.62,27.0012]
[1725586044092,23.6036,129.65,129.62,19.2866]
[1725586044679,23.6036,129.65,129.62,27.0014]
[1725586044882,23.6036,129.65,129.63,45.0]
[1725586045868,22.2616,129.65,129.63,45.0]
[1725586048201,29.9747,129.65,129.61,7.7153]
[1725586048519,29.9747,129.65,129.62,45.0]
[1725586048682,22.2616,129.65,129.62,45.0]
[1725586050605,22.2616,129.65,129.62,52.7148]
[1725586052189,7.712,129.67,129.62,52.7148]
[1725586052401,20.0,129.66,129.62,52.7148]
[1725586052712,22.3463,129.68,129.65,7.7128]
[1725586053604,22.3463,129.68,129.66,7.7124]
[1725586053797,22.3463,129.68,129.65,26.995]
[1725586054115,22.3463,129.68,129.66,45.0]
[1725586055814,0.15424114,129.67,129.66,45.0]
[1725586056111,0.15424114,129.67,129.65,26.995]